{"text_format":"1","workbook":"xlsx","n_sheets":5,"sheets":["Page 1","Page 2","Mesures des Voiles","Lexique 2022","Auxiliaries"],"not_rendered":{"charts":0,"images":11,"macros":1,"external_links":1,"defined_names":26,"comments":2,"pivot_tables":0},"unopened":[],"bounds":{"document_bytes":16777216,"sheet_cells":100000,"rows_first":2000,"rows_last":500,"rows_between":2000,"halvings":0,"cell_chars":16384,"cell_head_chars":4096},"cells_cut":0,"cells_raw":0,"read":"whole","date_system":"1900"}

{"sheet":"Page 1","index":0,"n_rows":63,"n_cols":22,"rows_kept":63,"cut":false,"hidden":false,"merged":[[53,0,53,3],[3,5,4,22],[5,5,5,22],[62,18,62,20],[45,2,45,13],[46,2,46,13],[47,2,47,13],[56,18,56,20],[58,18,58,20],[57,18,57,20],[59,18,59,20],[49,2,49,13],[50,2,50,13],[62,3,62,7],[31,12,32,13],[35,10,35,22],[0,19,1,23],[26,3,26,12],[28,3,28,9],[24,0,24,23],[20,2,20,4],[17,11,17,12],[8,6,8,20],[9,6,9,20],[28,14,28,16],[26,17,26,20],[6,5,7,22],[10,6,11,21],[17,15,17,19],[48,2,48,13],[33,3,33,7],[37,3,37,7],[35,3,35,5],[33,10,33,22],[37,10,37,22],[31,10,32,11],[40,0,40,14],[40,16,40,21],[18,15,19,19],[41,17,41,20]]}
[null,null,null,null,null,null,null,null,null,null,null,null,null,null,null,null,null,null,null,22]
[]
[]
[null,null,null,null,null,"FORMULAIRE de RENOUVELLEMENT"]
[]
[]
[null,null,null,null,null,"Certificat  de jauge ORC Club + Contrat de jauge OSIRIS                    -   2 0 2 2    -"]
[]
[null,null,null,null,null,null,"Formulaire disponible sur le site: "]
[null,null,null,null,null,null," http://www.ffvoile.fr/ffv/web/pratique/habitable/OSIRIS/formulaires.aspx"]
[null,null,null,null,null,null,"Les ajustements des calculs de certains paramètres du VPP de l'ORC entraînent le renouvellement de tous les certificats de jauge ORC à partir du :     1er Mars 2022"]
[]
[]
[]
[null,null,null,null,null,null,null,null,null,null,null,"Longueur de Coque HT =",null,null,null,null,null,null,null,"m"]
[]
[null,null,null,null,null,null,null,null,null,null,null,null,null,null,null,"[ Indique le Tarif en Page 2 ]"]
[null,null,null,null,null,null,null,null,null,null,null,{"$f":"'Page 2'!N22","v":""},null,"Euros",null,"         Par virement",null,null,null,null,true,{"$f":"ISNUMBER(R15)","v":false}]
[null,null,null,null,null,null,null,null,null,null,null,null,null,null,null,"            Uniquement"]
[]
[null,null,null,null,null,null,null,null,"Envoyez copie de l'ordre du virement avec références"]
[]
[]
[]
["IDENTIFICATION"]
[]
[null,null,"NOM du Bateau :",null,null,null,null,null,null,null,null,null,null,null,null,null,"N° de Voile :"]
[]
[null,null,"Nom de la Série :",null,null,null,null,null,null,null,null,null,null,"Particularités :"]
[]
[]
[null,null,"Propriétaire :",null,null,null,null,null,null,null,"Adresse :"]
[]
[null,null,"NOM :"]
[]
[null,null,"Prénom :"]
[]
[null,null,"E-mail :"]
[]
[]
["MODIFICATION(S)  ou  Pas de modification",null,null,null,null,null,null,null,null,null,null,null,null,null,null,null,"   RECAPITULATIF:"]
[null,null,null,null,null,null,null,null,null,null,null,null,null,null,null,null,null,"(Obligatoire)"]
[null,null,null,"Poids du Bateau",null,null,null,"Kg"]
[]
[]
[]
[]
[]
[]
[]
[]
[]
[]
["RECAPITULATIF :",null,null,null,null,"P :",null,null,null,"m",null,null,null,"E :",null,null,null,"m"]
[null,null,null,null,null,null,null,"HLU",null,null,null,"HLP"]
[null,null,null,null,null,"Plus Grand Génois / Foc / Code 0 :",null,null,null,"m",null,null,null,"m"]
[null,null,null,null,null,null,null,"SLU",null,null,null,"SLE",null,null,null,"SHW",null,null,"SFL"]
[null,null,null,null,null,"Plus Grand Spi Symétrique :",null,null,null,"m",null,null,null,"m",null,null,null,"m",null,null,null,"m"]
[null,null,null,null,null,null,null,"ALU",null,null,null,"ALE",null,null,null,"AMG",null,null,"ASF"]
[null,null,null,null,null,"Plus Grand Spi Asymétrique :",null,null,null,"m",null,null,null,"m",null,null,null,"m",null,null,null,"m"]
[]
[]
[null,null,null,"Tangon & Bout-dehors :",null,null,null,null,null,"SPL =",null,null,null,"m",null,null,null,"TPS =",null,null,null,"m"]

{"sheet":"Page 2","index":1,"n_rows":53,"n_cols":19,"rows_kept":53,"cut":false,"hidden":false,"merged":[[41,1,41,20],[37,1,37,20],[25,0,25,19],[33,12,33,19],[24,0,24,21],[26,0,26,19],[38,1,39,20],[30,1,30,20],[28,0,29,4],[34,12,34,19],[36,1,36,4],[54,2,54,19],[45,0,46,21],[52,4,52,8],[48,10,51,19],[48,0,48,3],[48,4,48,8],[50,4,50,6],[20,5,20,16],[22,4,22,16],[40,1,40,20],[4,7,4,16],[3,7,3,16],[5,7,5,16]]}
[]
[]
[]
[null,null,null,null,null,null,null,"-  TARIFS 2022  -"]
[null,null,null,null,null,null,null,"Pour Renouvellement de"]
[null,null,null,null,null,null,null,"Certificat de jauge ORC Club + Contrat de jauge OSIRIS "]
[]
[]
[]
[null,null,null,null,null,"De",null,5,"m","à",7.99,"m",null,{"$f":"Auxiliaries!E4","v":50},null,"Euros",null,null,{"$f":"IF(AND(H$22>=H10,H$22<H12),1,0)","v":0}]
[]
[null,null,null,null,null,"De",null,8,"m","à",9.99,"m",null,{"$f":"Auxiliaries!E5","v":59},null,"Euros",null,null,{"$f":"IF(AND(H$22>=H12,H$22<H14),1,0)","v":0}]
[]
[null,null,null,null,null,"De",null,10,"m","à",11.99,"m",null,{"$f":"Auxiliaries!E6","v":76},null,"Euros",null,null,{"$f":"IF(AND(H$22>=H14,H$22<H16),1,0)","v":0}]
[]
[null,null,null,null,null,"De",null,12,"m","à",14.99,"m",null,{"$f":"Auxiliaries!E7","v":104},null,"Euros",null,null,{"$f":"IF(AND(H$22>=H16,H$22<H18),1,0)","v":0}]
[]
[null,null,null,null,null,"De",null,15,"m"," et plus",null,null,null,{"$f":"Auxiliaries!E8","v":142},null,"Euros",null,null,{"$f":"IF(AND(H$22>=H18,H$22<K18),1,0)","v":0}]
[]
[]
[null,null,null,null,null,"IBAN de la FFVoile : FR76 1010 7001 3000 0103 0149 163"]
[null,null,null,null,null,null,null,{"$f":"IF('Page 1'!R15=\"\",\"\",'Page 1'!R15)","v":""},"m",null,"Par virement",null,null,{"$f":"IF(H22=\"\",\"\",IF(S10=1,N10,IF(S12=1,N12,IF(S14=1,N14,IF(S16=1,N16,N18)))))","v":""},null,"Euros"]
[null,null,null,null,"Envoyez copie de l'ordre du virement avec références"]
[]
["Les certificats de jauge ORC Club 2022 commencent à être établis à partir du 1er février 2022"]
["Les formulaires sont téléchargeables à partir du site :"]
["  http://www.ffvoile.fr/ffv/web/pratique/habitable/OSIRIS/formulaires.aspx"]
[]
[" Rappels Importants :"]
[]
[null,"Un emmagasineur n'est pas un enrouleur. Quand on déclare un foc à enrouleur, cela implique qu'il ne peut y avoir à bord d'autres focs que le foc de gros temps (RSO) et le tourmentin."]
[]
[]
[null,null,"Voiles Plates  (Génois / Focs/ Code 0 / Gennaker):",null,null,null,null,null,null,null,null,null,"Largeur à Mi-hauteur  <  0.75 *  Bordure"]
[null,null,"Voiles Creuses (Spinnakers):",null,null,null,null,null,null,null,null,null,"Largeur à Mi-hauteur  ≥   0.75 * Bordure"]
[]
[null,"Conséquences:"]
[null,"Les voiles de type Code 0 et Gennaker doivent être mesurés comme des génois."]
[null,"Les dimensions du Code 0 et du Gennaker doivent impérativement être déclarées en utilisant le formulaire de mesures des voiles."]
[]
[null,"TOUTES LES MODIFICATIONS DE MESURES (en particulier celles des voiles) REMPLACENT et ANNULENT LES PRECEDENTES."]
[null,"Pour toutes modifications, vous pouvez contacter votre Mesureur ou Délégués et joindre sa feuille de mesures."]
[null,null,null,null,"http://www.ffvoile.fr/ffv/web/pratique/habitable/OSIRIS/Liste_Delegues.aspx"]
[]
[]
["J'atteste avoir déclaré toutes les modifications qui ont été apportées au bateau  (Coque, appendices, gréement, voiles et équipements). "]
[]
[]
["PORT d'Attache :",null,null,null,null,null,null,null,null,null,"Je certifie sur l'honneur l'exactitude de mes déclarations et je reconnais mes responsabilités à l'égard de la jauge, en sachant que toute inexactitude pourra être soumise à réclamation."]
[]
[null,null,null,"Le :"]
[]
[null,null,null,"Le Déclarant :",null,null,null,null,null,null,"Le propriétaire   (ou son représentant)"]

{"sheet":"Mesures des Voiles","index":2,"n_rows":126,"n_cols":26,"rows_kept":126,"cut":false,"hidden":false,"merged":[[3,8,3,23],[1,8,2,23],[23,8,23,9],[23,10,23,11],[23,15,23,16],[23,17,23,18],[24,3,26,6],[25,8,25,9],[25,10,25,11],[25,15,25,16],[25,17,25,18],[19,1,19,24],[20,8,20,9],[20,11,20,13],[20,18,20,19],[20,20,20,22],[21,8,21,9],[21,11,21,13],[21,20,21,22],[4,8,5,23],[7,18,7,20],[10,14,10,22],[14,3,14,9],[16,5,16,23],[27,3,28,3],[27,8,27,9],[27,10,27,11],[27,15,27,16],[27,17,27,18],[29,8,29,9],[29,10,29,11],[29,15,29,16],[29,17,29,18],[43,0,64,0],[43,1,43,24],[49,1,49,3],[51,1,51,3],[51,6,51,7],[51,10,51,11],[57,1,57,3],[59,1,59,3],[53,1,53,3],[55,1,55,3],[61,1,61,3],[61,10,61,11],[61,17,61,18],[63,6,63,7],[53,10,53,11],[53,17,53,18],[55,6,55,7],[55,10,55,11],[55,17,55,18],[61,6,61,7],[31,8,31,9],[31,10,31,11],[31,15,31,16],[31,17,31,18],[82,1,82,3],[82,6,82,7],[84,1,84,3],[84,6,84,7],[86,1,86,3],[86,6,86,7],[80,6,80,7],[78,1,78,3],[43,25,64,25],[44,5,44,8],[44,13,44,15],[44,20,44,22],[45,5,45,8],[45,13,45,15],[45,20,45,22],[49,6,49,7],[49,10,49,11],[49,17,49,18],[57,6,57,7],[57,10,57,11],[57,17,57,18],[59,6,59,7],[59,10,59,11],[59,17,59,18],[51,17,51,18],[53,6,53,7],[105,2,105,8],[105,11,105,16],[105,18,105,24],[107,6,107,7],[66,25,89,25],[67,5,67,8],[67,11,68,24],[68,5,68,8],[69,13,69,15],[69,20,69,22],[70,13,70,15],[70,20,70,22],[74,6,74,7],[76,6,76,7],[78,6,78,7],[78,10,78,11],[86,10,86,16],[86,17,86,23],[88,6,88,7],[66,0,89,0],[66,1,66,9],[66,10,66,24],[74,1,74,3],[76,1,76,3],[78,17,78,18],[80,1,80,3],[110,0,111,25],[112,2,113,5],[93,13,93,15],[93,20,93,22],[97,2,97,3],[97,10,97,11],[97,17,97,18],[103,2,103,3],[103,10,103,11],[103,17,103,18],[91,0,108,0],[91,1,91,24],[91,25,108,25],[92,5,92,8],[92,13,92,15],[92,20,92,22],[93,5,93,8],[120,2,121,9],[120,16,120,22],[124,0,124,25],[125,0,125,25],[114,0,115,1],[114,2,115,9],[116,2,117,9],[116,16,116,22],[118,2,119,9],[118,16,118,18]]}
[]
[null,null,null,null,null,null,null,null,"            FORMULAIRE de MESURES des VOILES "]
[]
[]
[null,null,null,null,null,null,null,null," -  2 0 2 2  -"]
[]
[]
[null,null,null,null,null,null,null,null,null,null,null,null,null,null,null,null,null,"N° de Voile :"]
[]
[]
[null,null,null,null,null,null,null,null,null,null,null,null,null,"NOM du Bateau : "]
[]
[]
[]
[null,null,null,null,null,null,null,null,null,null,null,null,null,null,"Modifications demandées"]
[]
[null,null,null,null,null,"Attention: A priori, les anciennes mesures seront conservées sans instructions contraires"]
[]
[]
[null,"Grand - Voiles"]
[null,null,null,null,null,null,null,null,"TYPE",null,null,"Matériaux utilisés",null,null,null,null,null,null,"TYPE",null,"Matériaux utilisés"]
[null,null,null,null,null,null,null,"Identification :"]
[]
[null,null,null,null,null,null,null,null,"(MHB)",null,"Têtière ",null,null,null," m","(MHB)",null,"Têtière ",null,null,null," m"]
[null,null,null,"Mesures prises sur les espars:"]
[null,null,null,null,null,null,null,null,"(MUW)",null,"7/8 haut",null,null,null," m","(MUW)",null,"7/8 haut",null,null,null," m"]
[]
[null,null,null,"Rappel :",null,null,null,null,"(MTW)",null,"3/4 haut",null,null,null," m","(MTW)",null,"3/4 haut",null,null,null," m"]
[]
[null,null,null," P =",null,null,"m",null,"(MHW)",null,"Mi-hauteur",null,null,null," m","(MHW)",null,"Mi-hauteur",null,null,null," m"]
[]
[null,null,null,"E =",null,null,"m",null,"(MQW)",null,"1/4 bas",null,null,null," m","(MQW)",null,"1/4 bas",null,null,null," m"]
[]
[null,null,null,"SPL =",null,null,"m"]
[]
[null,null,null,null,null,null,null,null,null,null,null,"Guindant Indicatif =",null,null," m",null,null,null,"Guindant Indicatif =",null,null," m"]
[]
[null,null,null,"J =",null,null,"m",null,null,null,null,"Bordure Indicative =",null,null," m",null,null,null,"Bordure Indicative =",null,null," m"]
[]
[null,null,null,null,null,null,null,null,null,null,null,null,null,{"$f":"IF(N36>0.997*$F30,\"Guindant est trop grand ou P trop petit\",\"\")","v":""},null,null,null,null,null,null,null,null,{"$f":"IF(U36>0.997*$F30,\"Guindant est trop grand ou P trop petit\",\"\")","v":""}]
[null,null,null,null,null,null,null,null,null,null,null,"Surface =",null,{"$f":"IF(OR($F30=\"\",$F32=\"\",N24=\"\",N26=\"\",N28=\"\",N30=\"\",N32=\"\"),\"\",ROUND($F30/8*($F32+2*N32+2*N30+1.5*N28+N26+0.5*N24),2))","v":""}," m²",null,null,null,"Surface =",null,{"$f":"IF(OR($F30=\"\",$F32=\"\",U24=\"\",U26=\"\",U28=\"\",U30=\"\",U32=\"\"),\"\",ROUND($F30/8*($F32+2*U32+2*U30+1.5*U28+U26+0.5*U24),2))","v":""}," m²"]
[]
[]
["VOILES PLATES D'AVANT","Voiles de types : Focs / Génois / Code 0",null,null,null,null,null,null,null,null,null,null,null,null,null,null,null,null,null,null,null,null,null,null,null,"VOILES PLATES D'AVANT"]
[null,null,null,"TYPE",null,"Matériaux utilisés",null,null,null,null,null,"TYPE",null,"Matériaux utilisés",null,null,null,null,"TYPE",null,"Matériaux utilisés"]
[]
[]
[null,null,null,null,null,"Latté?",null,null,null,null,null,null,null,"Latté?",null,null,null,null,null,null,"Latté?"]
[]
[null,"Têtière ",null,null,null,null," m",null,"(HHB)",{"$f":"IF(F50=\"\",0.02*F60,F50)","v":0},"Têtière ",null,null,null," m","(HHB)",{"$f":"IF(N50=\"\",0.02*N60,N50)","v":0},"Têtière ",null,null,null," m","(HHB)",{"$f":"IF(U50=\"\",0.02*U60,U50)","v":0}]
[]
[null,"7/8 haut",null,null,null,null," m",null,"(HUW)",{"$f":"IF(F52=\"\",0.125*F60+0.875*J50,F52)","v":0},"7/8 haut",null,null,null," m","(HUW)",{"$f":"IF(N52=\"\",0.125*N60+0.875*Q50,N52)","v":0},"7/8 haut",null,null,null," m","(HUW)",{"$f":"IF(U52=\"\",0.125*U60+0.875*X50,U52)","v":0}]
[]
[null,"3/4 haut",null,null,null,null," m",null,"(HTW)",{"$f":"IF(F54=\"\",0.25*F60+0.75*J50,F54)","v":0},"3/4 haut",null,null,null," m","(HTW)",{"$f":"IF(N54=\"\",0.25*N60+0.75*Q50,N54)","v":0},"3/4 haut",null,null,null," m","(HTW)",{"$f":"IF(U54=\"\",0.25*U60+0.75*X50,U54)","v":0}]
[]
[null,"Mi-hauteur",null,null,null,null," m",null,"(HHW)",{"$f":"IF(F56=\"\",0.5*F60+0.5*J50,F56)","v":0},"Mi-hauteur",null,null,null," m","(HHW)",{"$f":"IF(N56=\"\",0.5*N60+0.5*Q50,N56)","v":0},"Mi-hauteur",null,null,null," m","(HHW)",{"$f":"IF(U56=\"\",0.5*U60+0.5*X50,U56)","v":0}]
[]
[null,"1/4 bas",null,null,null,null," m",null,"(HQW)",{"$f":"IF(F58=\"\",0.75*F60+0.25*J50,F58)","v":0},"1/4 bas",null,null,null," m","(HQW)",{"$f":"IF(N58=\"\",0.75*N60+0.25*Q50,N58)","v":0},"1/4 bas",null,null,null," m","(HQW)",{"$f":"IF(U58=\"\",0.75*U60+0.25*X50,U58)","v":0}]
[]
[null,"+ Gde Larg",null,null,null,null," m",null,"(HLP)",null,"+ Gde Larg",null,null,null," m","(HLP)",null,"+ Gde Larg",null,null,null," m","(HLP)"]
[]
[null,"Guindant",null,null,null,null," m",null,"(HLU)",null,"Guindant",null,null,null," m","(HLU)",null,"Guindant",null,null,null," m","(HLU)"]
[]
[null,null,null,"Surface =",null,{"$f":"IF(OR(F60=\"\",F62=\"\"),\"\",ROUND(0.1125*F62*(1.445*F60+2*J58+2*J56+1.5*J54+J52+0.5*J50),2))","v":""}," m²",null,null,null,null,"Surface =",null,{"$f":"IF(OR(N60=\"\",N62=\"\"),\"\",ROUND(0.1125*N62*(1.445*N60+2*Q58+2*Q56+1.5*Q54+Q52+0.5*Q50),2))","v":""}," m²",null,null,null,"Surface =",null,{"$f":"IF(OR(U60=\"\",U62=\"\"),\"\",ROUND(0.1125*U62*(1.445*U60+2*X58+2*X56+1.5*X54+X52+0.5*X50),2))","v":""}," m²"]
[]
[]
["VOILES PLATES D'AVANT","Gennaker",null,null,null,null,null,null,null,null,"Spinnakers  Symétriques",null,null,null,null,null,null,null,null,null,null,null,null,null,null,"VOILES CREUSES D'AVANT"]
[null,null,null,null,null,"Matériaux utilisés",null,null,null,null,null,"Un Spinnaker symétrique doit être parfaitement symétrique par rapport à sa médiane de Bordure, en construction et en utilisation de matériau.   "]
[]
[null,null,null,null,null,null,null,null,null,null,null,"TYPE",null,"Matériaux utilisés",null,null,null,null,"TYPE",null,"Matériaux utilisés"]
[null,null,null,null,"     Guidant Libre ?"]
[null,null,null,{"$f":"IF(G78=1,\"* Interdit *\",\"\")","v":""}]
[null,null,null,null,null,"   Latté?",null,null,null,null,null,{"$f":"IF(Q73=1,\"* Interdit *\",\"\")","v":""},null,"Latté?  ",null,null,null,null,{"$f":"IF(X73=1,\"* Interdit *\",\"\")","v":""},null,"Latté? "]
[]
[null,"Têtière ",null,null,null,null,"m",null,"(HHB)",{"$f":"IF(F75=\"\",0.02*F85,F75)","v":0},null,null,null,"  Symétries respectées?  ",null,null,null,null,null,null,"  Symétries respectées? "]
[]
[null,"7/8 haut",null,null,null,null,"m",null,"(HUW)",{"$f":"IF(F77=\"\",0.125*F85+0.875*J75,F77)","v":0},{"$f":"IF(Q77=1,\"(**)\",\"\")","v":""},null,null,"     Nerf de Chute ?  ",null,null,null,{"$f":"IF(X77=1,\"(**)\",\"\")","v":""},null,null,"     Nerf de Chute ? "]
[]
[null,"3/4 haut",null,null,null,null,"m",null,"(HTW)",{"$f":"IF(F79=\"\",0.25*F85+0.75*J75,F79)","v":0},"Guindant",null,null,null," m","(SLU)",null,"Guindant",null,null,null,"m","(SLU)"]
[]
[null,"Mi-hauteur",null,null,null,null,"m",null,"(HHW)",{"$f":"IF(F81=\"\",0.5*F85+0.5*J75,F81)","v":0},null,"Chute",null,null," m","(SLE)",null,null,"Chute",null,null,"m","(SLE)"]
[]
[null,"1/4 bas",null,null,null,null,"m",null,"(HQW)",{"$f":"IF(F83=\"\",0.75*F85+0.25*J75,F83)","v":0},null,"Mi-hauteur",null,null," m","(SHW)",{"$f":"1.8*MAX($F$34,$F$38)","v":0},null,"Mi-hauteur",null,null,"m","(SHW)",{"$f":"1.8*MAX($F$34,$F$38)","v":0}]
[]
[null,"+ Gde Larg",null,null,null,null,"m",null,"(HLP)",null,{"$f":"IF(N85=\"\",Q85,N85)","v":0},"Bordure",null,null," m","(SFL)",{"$f":"1.8*MAX($F$34,$F$38)","v":0},{"$f":"IF(U85=\"\",X85,U85)","v":0},"Bordure",null,null,"m","(SFL)",{"$f":"1.8*MAX($F$34,$F$38)","v":0}]
[]
[null,"Guindant",null,null,null,null,"m",null,"(HLU)",null,{"$f":"IF(OR(N79=\"\",N83=\"\"),\"\",IF(N83<0.75*N85,\"Ce n'est pas un Spinnaker !!!\",IF(Q73=1,\"Ce spinnaker n'est pas conforme\",IF(OR(Q75<>1,Q77=1,N81<0.95*N79),\"\",\"\"))))","v":""},null,null,null,null,null,null,{"$f":"IF(OR(U79=\"\",U83=\"\"),\"\",IF(U83<0.75*U85,\"Ce n'est pas un Spinnaker !!!\",IF(X73=1,\"Ce spinnaker n'est pas conforme\",IF(OR(X75<>1,X77=1,U81<0.95*U79),\"\",\"\"))))","v":""}]
[]
[null,null,null,"Surface =",null,{"$f":"IF(OR(F85=\"\",F87=\"\"),\"\",ROUND(0.1125*F87*(1.445*F85+2*J83+2*J81+1.5*J79+J77+0.5*J75),2))","v":""}," m²",null,null,{"$f":"IF(C87=\"\",0,1)","v":0},null,"Surface =",null,{"$f":"IF(OR(N79=\"\",N81=\"\",N83=\"\",N85=\"\"),\"\",IF(R89=1,\"Erreur\",ROUND((N79+N81)/2*(N85+4*N83)/6,2)))","v":""}," m²",null,{"$f":"IF(R87=\"\",0,1)","v":0},null,"Surface =",null,{"$f":"IF(OR(U79=\"\",U81=\"\",U83=\"\",U85=\"\"),\"\",IF(Y89=1,\"Erreur\",ROUND((U79+U81)/2*(U85+4*U83)/6,2)))","v":""}," m²",null,null,{"$f":"IF(AG81=\"\",0,1)","v":0}]
[]
[null,null,null,null,null,null,null,null,null,null,{"$f":"IF(OR(K77=\"(**)\",(R77=\"(**)\")),\"(**) : Les Nerfs de Chute sont interdits dans les Spinnakers Symétriques.\",\"\")","v":""}]
["VOILES CREUSES D'AVANT","Spinnakers  Asymétriques  =>  SHW ≥ 75% * SFL",null,null,null,null,null,null,null,null,null,null,null,null,null,null,null,null,null,null,null,null,null,null,null,"VOILES CREUSES D'AVANT"]
[null,null,null,"TYPE",null,"Matériaux utilisés",null,null,null,null,null,"TYPE",null,"Matériaux utilisés",null,null,null,null,"TYPE",null,"Matériaux utilisés"]
[]
[]
[null,null,null,{"$f":"IF(H97=1,\"* Interdit *\",\"\")","v":""},null,"  Latté?",null,null,null,null,null,{"$f":"IF(O97=1,\"* Interdit *\",\"\")","v":""},null,"  Latté?",1,null,null,null,{"$f":"IF(W97=1,\"* Interdit *\",\"\")","v":""},null,"  Latté?"]
[]
[null,null,"Guindant",null,null,null,"m",null,"(SLU)",null,"Guindant",null,null,null,"m","(SLU)",null,"Guindant",null,null,null,"m","(SLU)"]
[]
[null,null,null,"Chute",null,null,"m",null,"(SLE)",null,null,"Chute",null,null,"m","(SLE)",null,null,"Chute",null,null,"m","(SLE)"]
[]
[null,null,null,"Mi-hauteur",null,null,"m",null,"(SHW)",null,null,"Mi-hauteur",null,null,"m","(SHW)",null,null,"Mi-hauteur",null,null,"m","(SHW)"]
[]
[null,null,"Bordure",null,null,null,"m",null,"(SFL)",null,"Bordure",null,null,null,"m","(SFL)",null,"Bordure",null,null,null,"m","(SFL)"]
[]
[null,null,{"$f":"IF(F102=\"\",\"\",IF(F102<0.75*F104,\"Ce n'est pas un Spinnaker !!!\",IF(H97=1,\"Ce Spinnaker n'est pas conforme.\",\"\")))","v":""},null,null,null,null,null,null,null,null,{"$f":"IF(N102=\"\",\"\",IF(N102<0.75*N104,\"Ce n'est pas un Spinnaker !!!\",IF(O97=1,\"Ce Spinnaker n'est pas conforme.\",\"\")))","v":""},null,null,null,null,null,null,{"$f":"IF(U102=\"\",\"\",IF(U102<0.75*U104,\"Ce n'est pas un Spinnaker !!!\",IF(V97=1,\"Ce Spinnaker n'est pas conforme.\",\"\")))","v":""}]
[]
[null,null,null,"Surface =",null,{"$f":"IF(OR(F98=\"\",F100=\"\",F102=\"\",F104=\"\"),\"\",IF(J108=1,\"Erreur\",ROUND((F98+F100)/2*(F104+4*F102)/6,2)))","v":""}," m²",null,null,{"$f":"IF(C106=\"\",0,1)","v":0},null,"Surface =",null,{"$f":"IF(OR(N98=\"\",N100=\"\",N102=\"\",N104=\"\"),\"\",IF(R108=1,\"Erreur\",ROUND((N98+N100)/2*(N104+4*N102)/6,2)))","v":""}," m²",null,{"$f":"IF(K106=\"\",0,1)","v":0},null,"Surface =",null,{"$f":"IF(OR(U98=\"\",U100=\"\",U102=\"\",U104=\"\"),\"\",IF(Y108=1,\"Erreur\",ROUND((U98+U100)/2*(U104+4*U102)/6,2)))","v":""}," m²",null,{"$f":"IF(S106=\"\",0,1)","v":0}]
[]
[]
["Je certifie l'exactitude de mes déclarations et m'engage à signaler toute erreur ou toute modification ultérieure au Centre de Calcul FFVoile."]
[]
[null,null,"COMMENTAIRES :"]
[]
[null,null,null,null,null,null,null,null,null,null,null,"Posséder vous des voiles en Mylar, Kevlar, 3DL, etc…?",null,null,null,null,null,null,null,null,null,null,null,null,1]
[]
[null,null,null,null,null,null,null,null,null,null,null,null,null,null,null,"Fait à :"]
[]
[null,null,null,null,null,null,null,null,null,null,null,null,null,null,null,"Le :"]
[]
[null,null,null,null,null,null,null,null,null,null,null,null,null,null,null,"Le Déclarant :",null,null,null,null,null,null,null,null,null,2]
[null,null,null,null,null,null,null,null,null,null,null,null,null,"     Le propriétaire (ou son représentant)"]
[]
[]
["Pour connaitre les définitions de l'équipement, les points de mesure et mesures des voiles et du gréement, se reporter sur :"]
["http://www.ffvoile.fr/ffv/web/services/arbitrage/RCV.asp#Equipement"]

{"sheet":"Lexique 2022","index":3,"n_rows":42,"n_cols":3,"rows_kept":42,"cut":false,"hidden":false,"merged":[]}
[null,null,"                                  Lexique 2022"]
[null,"DESIGNATIONS","DEFINITIONS"]
[null,"LOA ou LH","Longueur de coque"]
[null,"IG","Hauteur de l'étai (Par rapport au livet de référence)"]
[null,"ISP","Hauteur de la drisse de spinnaker (Par rapport au livet de référence)"]
[null,"J","Base du triangle avant (Distance horizontale entre la face avant du mat et l'axe de l’étai au niveau du pont"]
[null,"FSJ","Distance horizontale entre l’extrémité avant de LOA et celle de J"]
[null,"P","Distance relevée sur le mat entre la marque limite inférieure et la marque limite supérieure d’établissement du guindant de la grand-voile"]
[null,"E","Distance relevée sur la bôme entre le bord arrière du mat et la marque extérieure de la bôme"]
[null,"BAS","Distance entre le point inférieur de la mesure de P et le livet de référence"]
[null,"MCG","Distance entre le point inférieur de la mesure de P et la position verticale du centre de masse du mât en configuration lège"]
[null,"MHB","Têtière d’une grand-voile (GV)"]
[null,"MUW","Largeur supérieure de GV au 7/8 de chute"]
[null,"MTW","Largeur haute de GV au 3/4 de chute"]
[null,"MHW","Largeur milieu de GV au 1/2 de chute"]
[null,"MQW","Largeur inférieure  de GV au 1/4 de chute"]
[null,"HLU","Guindant d’une voile d’avant (Foc, Génois, Code 0 ou Gennaker)"]
[null,"HHB","Têtière d’une voile d’avant (Foc, Génois, Code 0 ou Gennaker)"]
[null,"HUW","Largeur supérieure d’une voile d’avant au 7/8 de hauteur de la chute"]
[null,"HTW","Largeur haute d’une voile d’avant au 3/4 de hauteur de la chute"]
[null,"HHW","Largeur milieu d’une voile d’avant au 1/2 de hauteur de la chute"]
[null,"HQW","Largeur inférieure  d’une voile d’avant au 1/4 de hauteur de la chute"]
[null,"HLP","Plus grande perpendiculaire mesurée entre le point d’écoute et le guindant d’une voile d’avant                                      (Foc, Génois, Code 0 ou Gennaker)"]
[null,"HMW","Largeur à mi-hauteur d’une voile d’avant (Foc, Génois, Code 0 ou Gennaker)                                                                                (Distance entre le milieu du guindant et le milieu de la chute)"]
[null,"HF","Bordure d’une voile d’avant (Foot)"]
[null,"SL","Dimension maximum pour SLU et SLE"]
[null,"SLU","Guindant de spi symétrique"]
[null,"SLE","Chute de spi symétrique"]
[null,"STW","Largeur au 7/8 du spi symétrique                                                                                                                                                          (Distance entre les 7/8 des chutes ou pour un asymétrique du guindant et de la chute)"]
[null,"SHW","Largeur à mi-hauteur du spi symétrique                                                                                                                                                          (Distance entre le milieu du guindant et le milieu de la chute)"]
[null,"SFL","Bordure du spi symétrique"]
[null,"ALU (SLU)","Guindant du spi asymétrique"]
[null,"ALE (SLE)","Chute du spi asymétrique"]
[null,"ASL","Guindant moyen du spi asymétrique = (ALU+ALE)/2"]
[null,"AMG (SHW)","Largeur à mi-hauteur du spi asymétrique                                                                                                                                                          (Distance entre le milieu du guindant et le milieu de la chute)"]
[null,"ASF (SFL)","Bordure du spi asymétrique"]
[null,"SPL","Longueur hors tout du tangon fixé horizontalement sur sa ferrure, mesuré en extension"]
[null,"TPS","Distance horizontale entre la face avant du mat et la fixation de la voile à l’extrémité extérieure du bout-dehors"]
[null,"BDH","Bout-dehors"]
[null,"FSD","Largeur du profil de l'étai creux et/ou de l'emmagasineur et/ou de l'enrouleur"]
[null,"Voile d'avant                            ---> Gennaker","Une voile d'avant est un Gennaker quand sa largeur à mi-hauteur (MHW) est supérieure à 55% de sa bordure"]
[null,"Voile d'avant / Gennaker       ---> Spinnaker","Une voile d'avant ou un Gennaker est un Spinnaker quand sa largeur à mi-hauteur (SHW) est supérieure ou égale à 75% de sa bordure (SFL)"]

{"sheet":"Auxiliaries","index":4,"n_rows":126,"n_cols":6,"rows_kept":126,"cut":false,"hidden":true,"merged":[[1,4,1,5]]}
[]
[null,"P1-AA30","Partic",null,"Revalidation 2019"]
[null,null,"Standard",null,"CLUB","INTER"]
[null,null,"GTE",null,50,68]
[null,null,"PTE",null,59,85]
[null,null,"Croisière",null,76,110]
[null,null,"Racing",null,104,150]
[null,null,"\"Q\"",null,142,203]
[null,null,"\"DL\""]
[null,null,"\"DI\""]
[]
[]
[]
[null,"P1E47","Boutdehors"]
[null,null,"Pas de Bord-Dehors"]
[null,null,"Fixe dans l'axe"]
[null,null,"Coulissant"]
[null,null,"Orientable"]
[]
[]
[]
[null,"P1E49","Etaiavant"]
[null,null,"Simple"]
[null,null,"Etai creux"]
[null,null,"Emmaganiseur"]
[null,null,"Enrouleur"]
[]
[]
[]
[null,"P1Q47","Haubans"]
[null,null,"Cable"]
[null,null,"Rod Circulaire"]
[null,null,"Rod Lenticulaire"]
[null,null,"Fibres"]
[]
[]
[]
[null,"P1E49","Drissespi"]
[null,null,"1 Capelage"]
[null,null,"1 En Tête"]
[null,null,"1 Intermédiaire"]
[null,null,"x2 (Capelage + Tête)"]
[]
[]
[]
[null,"P2G45","Spin"]
[null,null,"Symétriques uniquement"]
[null,null,"Asymétriques sur étrave uniquement"]
[null,null,"Asymétriques sur Bout-Dehors Fixe uniquement"]
[null,null,"Asymétriques sur Bout-Dehors orientable"]
[null,null,"Symétriques et Asymétriques sur tangon"]
[null,null,"Pas de Spinnaker à Bord"]
[]
[]
[]
[]
[null,"J23","GdVoile"]
[null,"T23","Lourde"]
[null,null,"Médium"]
[null,null,"Légère"]
[null,null,"Croisière"]
[null,null,"Course"]
[]
[]
[null,"E47","Genois"]
[null,"M47","Lourd"]
[null,"T47","Médium"]
[null,"M72","Léger"]
[null,"T72","Croisière"]
[null,null,"Course"]
[null,null,"Code 0"]
[]
[]
[null,"E70","Spinnaker"]
[null,null,"Lourd"]
[null,null,"Médium"]
[null,null,"Léger"]
[null,null,"Croisière"]
[null,null,"Course"]
[]
[]
[]
[null,"M27","TissuGVGenois"]
[null,"V27","Inconnu"]
[null,"G47","Dacron - PET"]
[null,"O47","Pentex-  PEN"]
[null,"V47","Spectra - HMPE"]
[null,null,"Dyneema - HMPE"]
[null,null,"Certran - HMPE"]
[null,null,"Kevla - PPTA"]
[null,null,"Twaron - PPTA"]
[null,null,"Technora - PPTA"]
[null,null,"Zylon - PBO"]
[null,null,"Vectran -LCP"]
[null,null,"Carbone"]
[null,null,"MYLAR - PET Film"]
[null,null,"MELINEX - PET Film"]
[null,null,"Nylon"]
[null,null,"Polyester"]
[null,null,"Autres"]
[]
[]
[null,"G70","TissuGennaker"]
[null,null,"Inconnu"]
[null,null,"Nylon"]
[null,null,"Polyester"]
[null,null,"Autres"]
[]
[]
[]
[]
[]
[]
[]
[]
[]
[]
[]
[]
[]
[]
[null,"O72","TissuSpinnaker"]
[null,"V72","Inconnu"]
[null,"G95","Nylon"]
[null,"O98","Polyester"]
[null,"V95","Autres"]